[Event "Titled Tuesday Blitz November 15 Late 2022"]
[White "Timmermans, Mark"]
[Black "Baltaci, Ismail Tarik"]
[WhiteFideId "1026399"]
[BlackFideId "6365213"]
[WhiteElo "2460"]
[BlackElo "2337"]
[Result "0-1"]
[Round "01"]
[TimeControl "180+1"]
[Date "2022.11.16"]
[WhiteClock "0:00:11"]
[BlackClock "0:00:08"]

1. b4 {[%clk 0:02:59]}  d5 {[%clk 0:02:56]} 2. Bb2 {[%clk 0:03:00]}  Nf6 {[%clk 0:02:56]} 3. b5 {[%clk 0:02:54]}  Bf5 {[%clk 0:02:55]} 4. e3 {[%clk 0:02:53]}  Nbd7 {[%clk 0:02:55]} 5. Nf3 {[%clk 0:02:52]}  e6 {[%clk 0:02:55]} 6. c4 {[%clk 0:02:51]}  Bd6 {[%clk 0:02:52]} 7. a4 {[%clk 0:02:48]}  O-O {[%clk 0:02:51]} 8. Be2 {[%clk 0:02:47]}  dxc4 {[%clk 0:02:46]} 9. Bxc4 {[%clk 0:02:45]}  e5 {[%clk 0:02:46]} 10. O-O {[%clk 0:02:42]}  Qe7 {[%clk 0:02:46]} 11. h3 {[%clk 0:02:37]}  Rad8 {[%clk 0:02:44]} 12. Nc3 {[%clk 0:02:32]}  Rfe8 {[%clk 0:02:39]} 13. d4 {[%clk 0:02:29]}  exd4 {[%clk 0:02:38]} 14. Nxd4 {[%clk 0:02:29]}  Bg6 {[%clk 0:02:37]} 15. Qb3 {[%clk 0:02:26]}  Ne5 {[%clk 0:02:33]} 16. Be2 {[%clk 0:02:17]}  Nd3 {[%clk 0:02:29]} 17. Bxd3 {[%clk 0:01:45]}  Bxd3 {[%clk 0:02:30]} 18. Rfd1 {[%clk 0:01:46]}  Bg6 {[%clk 0:02:29]} 19. Nf3 {[%clk 0:01:42]}  Bh5 {[%clk 0:02:18]} 20. Ne2 {[%clk 0:01:36]}  Ne4 {[%clk 0:02:00]} 21. Ned4 {[%clk 0:01:22]}  Ng5 {[%clk 0:01:32]} 22. Ba3 {[%clk 0:01:04]}  Nxf3+ {[%clk 0:01:30]} 23. Nxf3 {[%clk 0:01:05]}  Bxf3 {[%clk 0:01:28]} 24. gxf3 {[%clk 0:01:06]}  Bxa3 {[%clk 0:01:08]} 25. Rxd8 {[%clk 0:01:06]}  Rxd8 {[%clk 0:01:07]} 26. Qxa3 {[%clk 0:01:04]}  Qg5+ {[%clk 0:01:04]} 27. Kf1 {[%clk 0:00:59]}  Qf5 {[%clk 0:01:01]} 28. Rc1 {[%clk 0:00:50]}  Qxf3 {[%clk 0:00:56]} 29. Qe7 {[%clk 0:00:49]}  Qxh3+ {[%clk 0:00:42]} 30. Ke2 {[%clk 0:00:48]}  Qd7 {[%clk 0:00:42]} 31. Qxd7 {[%clk 0:00:43]}  Rxd7 {[%clk 0:00:43]} 32. a5 {[%clk 0:00:43]}  Kf8 {[%clk 0:00:42]} 33. a6 {[%clk 0:00:40]}  bxa6 {[%clk 0:00:42]} 34. bxa6 {[%clk 0:00:41]}  Ke7 {[%clk 0:00:41]} 35. Rb1 {[%clk 0:00:41]}  Rd6 {[%clk 0:00:41]} 36. Rb7 {[%clk 0:00:40]}  Rxa6 {[%clk 0:00:39]} 37. Rxc7+ {[%clk 0:00:40]}  Kf6 {[%clk 0:00:40]} 38. f4 {[%clk 0:00:41]}  h6 {[%clk 0:00:38]} 39. Kf3 {[%clk 0:00:41]}  g5 {[%clk 0:00:38]} 40. e4 {[%clk 0:00:39]}  Ra3+ {[%clk 0:00:36]} 41. Kg4 {[%clk 0:00:39]}  h5+ {[%clk 0:00:25]} 42. Kxh5 {[%clk 0:00:39]}  gxf4 {[%clk 0:00:25]} 43. Kg4 {[%clk 0:00:40]}  f3 {[%clk 0:00:22]} 44. Kf4 {[%clk 0:00:38]}  f2 {[%clk 0:00:20]} 45. Rc6+ {[%clk 0:00:38]}  Ke7 {[%clk 0:00:19]} 46. Rc1 {[%clk 0:00:39]}  Ra2 {[%clk 0:00:18]} 47. Kf3 {[%clk 0:00:37]}  a5 {[%clk 0:00:18]} 48. Kg2 {[%clk 0:00:36]}  Ke6 {[%clk 0:00:18]} 49. Rc5 {[%clk 0:00:36]}  a4 {[%clk 0:00:18]} 50. Ra5 {[%clk 0:00:34]}  a3 {[%clk 0:00:17]} 51. Kf1 {[%clk 0:00:35]}  Ra1+ {[%clk 0:00:17]} 52. Kxf2 {[%clk 0:00:35]}  a2 {[%clk 0:00:17]} 53. Kg2 {[%clk 0:00:36]}  f6 {[%clk 0:00:17]} 54. Kh2 {[%clk 0:00:36]}  Kd6 {[%clk 0:00:17]} 55. Kg2 {[%clk 0:00:36]}  Kc6 {[%clk 0:00:18]} 56. Kh2 {[%clk 0:00:33]}  Kb6 {[%clk 0:00:18]} 57. Ra3 {[%clk 0:00:33]}  Kc5 {[%clk 0:00:19]} 58. Ra4 {[%clk 0:00:32]}  Kb5 {[%clk 0:00:19]} 59. Ra3 {[%clk 0:00:32]}  Kb4 {[%clk 0:00:19]} 60. Ra7 {[%clk 0:00:32]}  Kc3 {[%clk 0:00:20]} 61. Kg2 {[%clk 0:00:30]}  Kd3 {[%clk 0:00:15]} 62. Ra4 {[%clk 0:00:30]}  Ke3 {[%clk 0:00:13]} 63. Kh2 {[%clk 0:00:21]}  Kf3 {[%clk 0:00:13]} 64. Ra3+ {[%clk 0:00:16]}  Kxe4 {[%clk 0:00:13]} 65. Kg2 {[%clk 0:00:17]}  f5 {[%clk 0:00:13]} 66. Ra4+ {[%clk 0:00:18]}  Ke5 {[%clk 0:00:13]} 67. Ra3 {[%clk 0:00:18]}  f4 {[%clk 0:00:11]} 68. Kh2 {[%clk 0:00:15]}  Ke4 {[%clk 0:00:11]} 69. Ra4+ {[%clk 0:00:12]}  Kf3 {[%clk 0:00:11]} 70. Ra3+ {[%clk 0:00:12]}  Kg4 {[%clk 0:00:10]} 71. Ra4 {[%clk 0:00:11]}  Kg5 {[%clk 0:00:09]} 72. Ra5+ {[%clk 0:00:12]}  Kh4 {[%clk 0:00:09]} 73. Ra4 {[%clk 0:00:12]}  Kg4 {[%clk 0:00:10]} 74. Kg2 {[%clk 0:00:11]}  Kf5 {[%clk 0:00:10]} 75. Ra5+ {[%clk 0:00:12]}  Ke4 {[%clk 0:00:09]} 76. Ra4+ {[%clk 0:00:12]}  Ke3 {[%clk 0:00:08]} 77. Ra3+ {[%clk 0:00:13]}  Ke2 {[%clk 0:00:08]} 78. Ra4 {[%clk 0:00:11]}  f3+ {[%clk 0:00:08]} 79. Kg3 {[%clk 0:00:12]}  f2 {[%clk 0:00:08]} 80. Re4+ {[%clk 0:00:13]}  Kd3 {[%clk 0:00:08]} 81. Rf4 {[%clk 0:00:11]}  f1=Q {[%clk 0:00:08]} 0-1


[Site "https://www.chess.com"]

[Event "Titled Tuesday Blitz November 15 Late 2022"]
[White "Toncheva, Nadya"]
[Black "Naroditsky, Daniel"]
[WhiteFideId "2924056"]
[BlackFideId "2026961"]
[WhiteElo "2101"]
[BlackElo "2628"]
[Result "0-1"]
[Round "01"]
[TimeControl "180+1"]
[Date "2022.11.15"]
[WhiteClock "0:00:03"]
[BlackClock "0:01:47"]

1. e4 {[%clk 0:02:59]}  c6 {[%clk 0:03:00]} 2. d4 {[%clk 0:02:57]}  d5 {[%clk 0:03:01]} 3. Nc3 {[%clk 0:02:57]}  dxe4 {[%clk 0:03:01]} 4. Nxe4 {[%clk 0:02:58]}  Nf6 {[%clk 0:03:02]} 5. Nxf6+ {[%clk 0:02:59]}  exf6 {[%clk 0:03:02]} 6. c3 {[%clk 0:02:59]}  Bd6 {[%clk 0:03:03]} 7. Bd3 {[%clk 0:02:59]}  O-O {[%clk 0:03:04]} 8. Ne2 {[%clk 0:02:59]}  Re8 {[%clk 0:03:01]} 9. O-O {[%clk 0:02:59]}  Qc7 {[%clk 0:02:55]} 10. Ng3 {[%clk 0:02:59]}  Nd7 {[%clk 0:02:55]} 11. f4 {[%clk 0:02:56]}  Nf8 {[%clk 0:02:53]} 12. f5 {[%clk 0:02:56]}  c5 {[%clk 0:02:42]} 13. d5 {[%clk 0:02:29]}  Nd7 {[%clk 0:02:38]} 14. Nh5 {[%clk 0:02:03]}  Ne5 {[%clk 0:02:32]} 15. Bf4 {[%clk 0:01:08]}  Kh8 {[%clk 0:02:18]} 16. Bc2 {[%clk 0:00:49]}  b5 {[%clk 0:02:15]} 17. Bxe5 {[%clk 0:00:32]}  Rxe5 {[%clk 0:02:16]} 18. Qf3 {[%clk 0:00:27]}  Bb7 {[%clk 0:02:15]} 19. Rad1 {[%clk 0:00:26]}  Rae8 {[%clk 0:02:12]} 20. Qg4 {[%clk 0:00:23]}  Bf8 {[%clk 0:02:11]} 21. Rd3 {[%clk 0:00:16]}  Re4 {[%clk 0:02:06]} 22. Qh3 {[%clk 0:00:14]}  Qe5 {[%clk 0:01:57]} 23. Rg3 {[%clk 0:00:13]}  Re3 {[%clk 0:01:57]} 24. Bd1 {[%clk 0:00:07]}  Bxd5 {[%clk 0:01:55]} 25. Bf3 {[%clk 0:00:06]}  Bxf3 {[%clk 0:01:55]} 26. Rgxf3 {[%clk 0:00:06]}  Rxf3 {[%clk 0:01:55]} 27. Qxf3 {[%clk 0:00:07]}  Qe2 {[%clk 0:01:54]} 28. Qxe2 {[%clk 0:00:06]}  Rxe2 {[%clk 0:01:55]} 29. Rf2 {[%clk 0:00:06]}  Re5 {[%clk 0:01:55]} 30. Kf1 {[%clk 0:00:06]}  c4 {[%clk 0:01:53]} 31. Ng3 {[%clk 0:00:07]}  g6 {[%clk 0:01:52]} 32. Re2 {[%clk 0:00:07]}  Rxe2 {[%clk 0:01:51]} 33. Kxe2 {[%clk 0:00:08]}  Kg7 {[%clk 0:01:51]} 34. Kf3 {[%clk 0:00:07]}  Bd6 {[%clk 0:01:52]} 35. Ne4 {[%clk 0:00:06]}  Bxh2 {[%clk 0:01:52]} 36. g3 {[%clk 0:00:06]}  Bg1 {[%clk 0:01:50]} 37. Nd6 {[%clk 0:00:06]}  a6 {[%clk 0:01:51]} 38. Nc8 {[%clk 0:00:06]}  Bc5 {[%clk 0:01:49]} 39. Ke4 {[%clk 0:00:05]}  h5 {[%clk 0:01:49]} 40. Kd5 {[%clk 0:00:05]}  Bf2 {[%clk 0:01:47]} 41. Nd6 {[%clk 0:00:03]}  Bxg3 {[%clk 0:01:47]} 42. Ne4 {[%clk 0:00:03]}  h4 {[%clk 0:01:47]} 0-1


[Site "https://www.chess.com"]

[Event "Titled Tuesday Blitz November 15 Late 2022"]
[White "Vega Gutierrez, Sabrina"]
[Black "Tang, Andrew"]
[WhiteFideId "2219026"]
[BlackFideId "2059630"]
[WhiteElo "2261"]
[BlackElo "2581"]
[Result "0-1"]
[Round "01"]
[TimeControl "180+1"]
[Date "2022.11.16"]
[WhiteClock "0:00:03"]
[BlackClock "0:00:28"]

1. e4 {[%clk 0:03:00]}  b5 {[%clk 0:03:00]} 2. Nf3 {[%clk 0:03:00]}  Bb7 {[%clk 0:03:00]} 3. d3 {[%clk 0:02:36]}  g6 {[%clk 0:02:55]} 4. g3 {[%clk 0:02:28]}  Bg7 {[%clk 0:02:44]} 5. Bg2 {[%clk 0:02:25]}  d6 {[%clk 0:02:44]} 6. O-O {[%clk 0:02:25]}  Nf6 {[%clk 0:02:41]} 7. a4 {[%clk 0:02:17]}  b4 {[%clk 0:02:42]} 8. a5 {[%clk 0:02:12]}  O-O {[%clk 0:02:40]} 9. Bd2 {[%clk 0:02:01]}  c5 {[%clk 0:02:36]} 10. c3 {[%clk 0:02:00]}  bxc3 {[%clk 0:02:20]} 11. bxc3 {[%clk 0:01:58]}  Qc7 {[%clk 0:02:14]} 12. Na3 {[%clk 0:01:56]}  Qxa5 {[%clk 0:02:08]} 13. e5 {[%clk 0:01:50]}  dxe5 {[%clk 0:01:42]} 14. Nc4 {[%clk 0:01:49]}  Qc7 {[%clk 0:01:41]} 15. Ncxe5 {[%clk 0:01:48]}  Nc6 {[%clk 0:01:33]} 16. Bf4 {[%clk 0:01:41]}  Nxe5 {[%clk 0:01:22]} 17. Bxe5 {[%clk 0:01:39]}  Qd7 {[%clk 0:01:20]} 18. Rb1 {[%clk 0:01:36]}  Bc6 {[%clk 0:01:17]} 19. Bf4 {[%clk 0:01:21]}  Qc8 {[%clk 0:01:05]} 20. Re1 {[%clk 0:01:16]}  Nd5 {[%clk 0:01:04]} 21. Bd2 {[%clk 0:01:13]}  Nxc3 {[%clk 0:00:57]} 22. Bxc3 {[%clk 0:01:09]}  Bxc3 {[%clk 0:00:57]} 23. Rxe7 {[%clk 0:01:09]}  a5 {[%clk 0:00:46]} 24. Ne5 {[%clk 0:00:46]}  Bxg2 {[%clk 0:00:43]} 25. Kxg2 {[%clk 0:00:42]}  a4 {[%clk 0:00:41]} 26. Qf3 {[%clk 0:00:31]}  Bxe5 {[%clk 0:00:36]} 27. Rxe5 {[%clk 0:00:31]}  a3 {[%clk 0:00:37]} 28. Qe3 {[%clk 0:00:18]}  Qc6+ {[%clk 0:00:30]} 29. Kg1 {[%clk 0:00:18]}  Rfb8 {[%clk 0:00:28]} 30. Rc1 {[%clk 0:00:03]}  a2 {[%clk 0:00:28]} 31. Rexc5 {[%clk 0:00:03]}  Qf6 {[%clk 0:00:28]} 0-1


[Site "https://www.chess.com"]

[Event "Titled Tuesday Blitz November 15 Late 2022"]
[White "Wadsworth, Matthew J"]
[Black "Thiel, Thomas"]
[WhiteFideId "415804"]
[BlackFideId "4615964"]
[WhiteElo "2367"]
[BlackElo "2230"]
[Result "1-0"]
[Round "01"]
[TimeControl "180+1"]
[Date "2022.11.16"]
[WhiteClock "0:00:56"]
[BlackClock "0:01:21"]

1. c4 {[%clk 0:02:59]}  Nf6 {[%clk 0:02:58]} 2. g3 {[%clk 0:02:59]}  c6 {[%clk 0:02:56]} 3. Bg2 {[%clk 0:02:59]}  d5 {[%clk 0:02:56]} 4. Nf3 {[%clk 0:03:00]}  dxc4 {[%clk 0:02:54]} 5. O-O {[%clk 0:02:59]}  Be6 {[%clk 0:02:52]} 6. Na3 {[%clk 0:02:49]}  Na6 {[%clk 0:02:49]} 7. Ng5 {[%clk 0:02:48]}  Bd5 {[%clk 0:02:48]} 8. e4 {[%clk 0:02:48]}  h6 {[%clk 0:02:42]} 9. exd5 {[%clk 0:02:48]}  hxg5 {[%clk 0:02:42]} 10. dxc6 {[%clk 0:02:48]}  b6 {[%clk 0:02:39]} 11. Nxc4 {[%clk 0:02:40]}  Nc7 {[%clk 0:02:37]} 12. d4 {[%clk 0:02:37]}  g4 {[%clk 0:02:35]} 13. Bf4 {[%clk 0:02:32]}  e6 {[%clk 0:02:20]} 14. Re1 {[%clk 0:02:20]}  Be7 {[%clk 0:02:18]} 15. Ne5 {[%clk 0:02:07]}  Ncd5 {[%clk 0:02:07]} 16. Bg5 {[%clk 0:01:50]}  Rc8 {[%clk 0:02:04]} 17. Rc1 {[%clk 0:01:49]}  O-O {[%clk 0:02:01]} 18. Nxg4 {[%clk 0:01:46]}  Nxg4 {[%clk 0:01:58]} 19. Bxe7 {[%clk 0:01:46]}  Qxe7 {[%clk 0:01:49]} 20. Qxg4 {[%clk 0:01:47]}  Qf6 {[%clk 0:01:49]} 21. Bxd5 {[%clk 0:01:42]}  exd5 {[%clk 0:01:50]} 22. c7 {[%clk 0:01:35]}  Qd6 {[%clk 0:01:46]} 23. Qf4 {[%clk 0:01:28]}  Qd7 {[%clk 0:01:38]} 24. h4 {[%clk 0:01:25]}  f6 {[%clk 0:01:33]} 25. Re3 {[%clk 0:01:16]}  Kf7 {[%clk 0:01:32]} 26. Rec3 {[%clk 0:01:12]}  Rfe8 {[%clk 0:01:31]} 27. Kg2 {[%clk 0:01:12]}  Re4 {[%clk 0:01:29]} 28. Qf3 {[%clk 0:01:12]}  Rxd4 {[%clk 0:01:27]} 29. Re3 {[%clk 0:00:57]}  Rxc7 {[%clk 0:01:21]} 30. Qh5+ {[%clk 0:00:56]} 1-0


[Site "https://www.chess.com"]

[Event "Titled Tuesday Blitz November 15 Late 2022"]
[White "Wu, Rochelle"]
[Black "Stanisz, Patryk"]
[WhiteFideId "30908132"]
[BlackFideId "1123106"]
[WhiteElo "2217"]
[BlackElo "2069"]
[Result "1-0"]
[Round "01"]
[TimeControl "180+1"]
[Date "2022.11.16"]
[WhiteClock "0:01:56"]
[BlackClock "0:00:35"]

1. d4 {[%clk 0:02:58]}  d5 {[%clk 0:02:59]} 2. c4 {[%clk 0:02:58]}  c6 {[%clk 0:02:59]} 3. Nc3 {[%clk 0:02:57]}  Nf6 {[%clk 0:03:00]} 4. cxd5 {[%clk 0:02:58]}  cxd5 {[%clk 0:02:59]} 5. Nf3 {[%clk 0:02:45]}  a6 {[%clk 0:02:59]} 6. Bf4 {[%clk 0:02:40]}  Nc6 {[%clk 0:02:53]} 7. e3 {[%clk 0:02:41]}  g6 {[%clk 0:02:50]} 8. Bd3 {[%clk 0:02:40]}  Bg7 {[%clk 0:02:50]} 9. O-O {[%clk 0:02:38]}  O-O {[%clk 0:02:50]} 10. Rc1 {[%clk 0:02:37]}  Bg4 {[%clk 0:02:42]} 11. h3 {[%clk 0:02:37]}  Bxf3 {[%clk 0:02:42]} 12. Qxf3 {[%clk 0:02:38]}  Rc8 {[%clk 0:02:42]} 13. Rfd1 {[%clk 0:02:35]}  e6 {[%clk 0:02:38]} 14. a3 {[%clk 0:02:34]}  Na5 {[%clk 0:02:37]} 15. Na4 {[%clk 0:02:34]}  Nd7 {[%clk 0:02:25]} 16. Qg3 {[%clk 0:02:24]}  Nc6 {[%clk 0:01:53]} 17. Bd6 {[%clk 0:02:09]}  Re8 {[%clk 0:01:52]} 18. Nc5 {[%clk 0:02:09]}  Nxc5 {[%clk 0:01:51]} 19. Rxc5 {[%clk 0:02:10]}  Qb6 {[%clk 0:01:28]} 20. b4 {[%clk 0:02:06]}  Na7 {[%clk 0:01:16]} 21. Bc7 {[%clk 0:02:04]}  Rxc7 {[%clk 0:01:13]} 22. Qxc7 {[%clk 0:02:05]}  Qxc7 {[%clk 0:01:02]} 23. Rxc7 {[%clk 0:02:06]}  Rb8 {[%clk 0:01:03]} 24. Rdc1 {[%clk 0:02:05]}  Nc6 {[%clk 0:01:02]} 25. Bxa6 {[%clk 0:02:03]}  Nxd4 {[%clk 0:00:37]} 26. exd4 {[%clk 0:02:00]}  bxa6 {[%clk 0:00:35]} 27. Rc8+ {[%clk 0:01:59]}  Rxc8 {[%clk 0:00:36]} 28. Rxc8+ {[%clk 0:02:00]}  Bf8 {[%clk 0:00:37]} 29. a4 {[%clk 0:02:00]}  Kg7 {[%clk 0:00:37]} 30. b5 {[%clk 0:02:01]}  axb5 {[%clk 0:00:38]} 31. axb5 {[%clk 0:02:00]}  e5 {[%clk 0:00:37]} 32. b6 {[%clk 0:02:00]}  exd4 {[%clk 0:00:37]} 33. b7 {[%clk 0:02:01]}  Bd6 {[%clk 0:00:38]} 34. Rd8 {[%clk 0:01:58]}  Bc7 {[%clk 0:00:36]} 35. Rxd5 {[%clk 0:01:57]}  Kf6 {[%clk 0:00:36]} 36. Rxd4 {[%clk 0:01:57]}  Ke6 {[%clk 0:00:35]} 37. Rb4 {[%clk 0:01:56]}  Bb8 {[%clk 0:00:35]} 38. Rc4 {[%clk 0:01:56]}  Kd7 {[%clk 0:00:35]} 39. Rc8 {[%clk 0:01:56]} 1-0


[Site "https://www.chess.com"]

[Event "Titled Tuesday Blitz November 15 Late 2022"]
[White "Yanchenko, Roman"]
[Black "Gonzalez, Francisco Silva"]
[WhiteFideId "4137329"]
[BlackFideId "1512285"]
[WhiteElo "2489"]
[BlackElo "2159"]
[Result "1-0"]
[Round "01"]
[TimeControl "180+1"]
[Date "2022.11.16"]
[WhiteClock "0:01:22"]
[BlackClock "0:00:23"]

1. d4 {[%clk 0:02:53]}  Nf6 {[%clk 0:02:58]} 2. c4 {[%clk 0:02:53]}  e6 {[%clk 0:02:50]} 3. Nf3 {[%clk 0:02:52]}  d5 {[%clk 0:02:48]} 4. Nc3 {[%clk 0:02:52]}  a6 {[%clk 0:02:47]} 5. Bg5 {[%clk 0:02:52]}  dxc4 {[%clk 0:02:47]} 6. a4 {[%clk 0:02:52]}  Nc6 {[%clk 0:02:46]} 7. e3 {[%clk 0:02:52]}  Na5 {[%clk 0:02:47]} 8. Ne5 {[%clk 0:02:53]}  Bb4 {[%clk 0:02:46]} 9. Nxc4 {[%clk 0:02:52]}  Qd5 {[%clk 0:02:46]} 10. Bxf6 {[%clk 0:02:51]}  Nxc4 {[%clk 0:02:45]} 11. Bxg7 {[%clk 0:02:49]}  Rg8 {[%clk 0:02:43]} 12. Qb3 {[%clk 0:02:39]}  Nxe3 {[%clk 0:02:41]} 13. Qxb4 {[%clk 0:02:27]}  Nc2+ {[%clk 0:02:41]} 14. Kd2 {[%clk 0:02:27]}  Nxb4 {[%clk 0:02:41]} 15. Nxd5 {[%clk 0:02:28]}  Nxd5 {[%clk 0:02:41]} 16. Be5 {[%clk 0:02:28]}  f6 {[%clk 0:02:41]} 17. Bg3 {[%clk 0:02:28]}  e5 {[%clk 0:02:31]} 18. dxe5 {[%clk 0:02:26]}  fxe5 {[%clk 0:02:31]} 19. Re1 {[%clk 0:02:25]}  Be6 {[%clk 0:02:19]} 20. Rxe5 {[%clk 0:02:24]}  Kd7 {[%clk 0:02:18]} 21. Bc4 {[%clk 0:02:22]}  c6 {[%clk 0:02:19]} 22. Rhe1 {[%clk 0:02:19]}  Rae8 {[%clk 0:02:18]} 23. a5 {[%clk 0:02:19]}  Rg4 {[%clk 0:02:16]} 24. b3 {[%clk 0:02:08]}  Rd4+ {[%clk 0:02:14]} 25. Kc1 {[%clk 0:02:08]}  Rg4 {[%clk 0:02:14]} 26. Kb2 {[%clk 0:01:48]}  Rd4 {[%clk 0:02:08]} 27. R5e2 {[%clk 0:01:45]}  h5 {[%clk 0:02:03]} 28. f3 {[%clk 0:01:42]}  h4 {[%clk 0:01:52]} 29. Be5 {[%clk 0:01:42]}  Rxc4 {[%clk 0:01:43]} 30. bxc4 {[%clk 0:01:42]}  Ne7 {[%clk 0:01:25]} 31. Rd2+ {[%clk 0:01:41]}  Kc8 {[%clk 0:01:25]} 32. Bf6 {[%clk 0:01:41]}  Nf5 {[%clk 0:01:25]} 33. Re5 {[%clk 0:01:34]}  Kc7 {[%clk 0:01:17]} 34. Kc3 {[%clk 0:01:26]}  Kc8 {[%clk 0:01:12]} 35. Kb4 {[%clk 0:01:25]}  Kc7 {[%clk 0:01:12]} 36. Kc5 {[%clk 0:01:25]}  Bd7 {[%clk 0:01:09]} 37. Rxe8 {[%clk 0:01:24]}  Bxe8 {[%clk 0:01:09]} 38. Bd8+ {[%clk 0:01:24]}  Kc8 {[%clk 0:01:09]} 39. Bb6 {[%clk 0:01:24]}  Bd7 {[%clk 0:01:10]} 40. Re2 {[%clk 0:01:24]}  Ng7 {[%clk 0:01:01]} 41. g4 {[%clk 0:01:24]}  Ne6+ {[%clk 0:01:00]} 42. Kd6 {[%clk 0:01:23]}  Nf4 {[%clk 0:00:49]} 43. Re7 {[%clk 0:01:23]}  Nd5 {[%clk 0:00:23]} 44. cxd5 {[%clk 0:01:22]} 1-0


[Site "https://www.chess.com"]

[Event "Titled Tuesday Blitz November 15 Late 2022"]
[White "Zhigalko, Sergei"]
[Black "Kleinman, Michael"]
[WhiteFideId "13502956"]
[BlackFideId "2609479"]
[WhiteElo "2662"]
[BlackElo "2287"]
[Result "1-0"]
[Round "01"]
[TimeControl "180+1"]
[Date "2022.11.16"]
[WhiteClock "0:02:03"]
[BlackClock "0:00:54"]

1. e4 {[%clk 0:03:00]}  c6 {[%clk 0:02:58]} 2. d4 {[%clk 0:03:00]}  d5 {[%clk 0:02:56]} 3. e5 {[%clk 0:03:01]}  Bf5 {[%clk 0:02:55]} 4. Nf3 {[%clk 0:03:02]}  e6 {[%clk 0:02:55]} 5. Be2 {[%clk 0:03:03]}  Ne7 {[%clk 0:02:53]} 6. O-O {[%clk 0:03:03]}  h6 {[%clk 0:02:53]} 7. Nbd2 {[%clk 0:03:03]}  c5 {[%clk 0:02:53]} 8. dxc5 {[%clk 0:03:00]}  Nec6 {[%clk 0:02:51]} 9. Nb3 {[%clk 0:02:58]}  Nd7 {[%clk 0:02:50]} 10. Be3 {[%clk 0:02:52]}  Ndxe5 {[%clk 0:02:46]} 11. Nxe5 {[%clk 0:02:53]}  Nxe5 {[%clk 0:02:46]} 12. Bb5+ {[%clk 0:02:47]}  Nc6 {[%clk 0:02:43]} 13. Nd4 {[%clk 0:02:48]}  Rc8 {[%clk 0:02:41]} 14. Nxf5 {[%clk 0:02:44]}  exf5 {[%clk 0:02:42]} 15. Qf3 {[%clk 0:02:37]}  d4 {[%clk 0:02:32]} 16. Rad1 {[%clk 0:02:27]}  Bxc5 {[%clk 0:02:31]} 17. Qxf5 {[%clk 0:02:27]}  O-O {[%clk 0:01:09]} 18. Qxc5 {[%clk 0:02:24]}  Qa5 {[%clk 0:01:03]} 19. Bd2 {[%clk 0:02:19]}  Qxa2 {[%clk 0:01:03]} 20. Bxc6 {[%clk 0:02:14]}  Rxc6 {[%clk 0:01:02]} 21. Qxd4 {[%clk 0:02:15]}  Rxc2 {[%clk 0:01:00]} 22. Bc3 {[%clk 0:02:15]}  f6 {[%clk 0:00:58]} 23. Ra1 {[%clk 0:02:14]}  Qf7 {[%clk 0:00:54]} 24. Qe4 {[%clk 0:02:03]} 1-0


[Site "https://www.chess.com"]

[Event "Titled Tuesday Blitz November 15 Late 2022"]
[White "chess50years"]
[Black "Yurovskykh, Oleksandr"]
[BlackFideId "14134020"]
[WhiteElo "2140"]
[BlackElo "2265"]
[Result "0-1"]
[Round "01"]
[TimeControl "180+1"]
[Date "2022.11.16"]
[WhiteClock "0:00:06"]
[BlackClock "0:00:25"]

1. d4 {[%clk 0:02:59]}  Nf6 {[%clk 0:02:44]} 2. c4 {[%clk 0:02:58]}  e6 {[%clk 0:02:43]} 3. Nc3 {[%clk 0:02:58]}  Bb4 {[%clk 0:02:42]} 4. Bg5 {[%clk 0:02:54]}  c5 {[%clk 0:02:41]} 5. Nf3 {[%clk 0:02:51]}  h6 {[%clk 0:02:32]} 6. Bxf6 {[%clk 0:02:49]}  Qxf6 {[%clk 0:02:31]} 7. e3 {[%clk 0:02:46]}  Bxc3+ {[%clk 0:02:22]} 8. bxc3 {[%clk 0:02:45]}  O-O {[%clk 0:02:18]} 9. Be2 {[%clk 0:02:40]}  d6 {[%clk 0:02:18]} 10. O-O {[%clk 0:02:37]}  Nc6 {[%clk 0:02:18]} 11. Nd2 {[%clk 0:02:31]}  b6 {[%clk 0:02:15]} 12. Bf3 {[%clk 0:02:19]}  Bb7 {[%clk 0:02:13]} 13. Qa4 {[%clk 0:02:09]}  Rfc8 {[%clk 0:02:07]} 14. Rac1 {[%clk 0:01:52]}  Qe7 {[%clk 0:01:54]} 15. h3 {[%clk 0:01:48]}  Na5 {[%clk 0:01:53]} 16. Bxb7 {[%clk 0:01:47]}  Qxb7 {[%clk 0:01:54]} 17. Qd1 {[%clk 0:01:44]}  Qa6 {[%clk 0:01:33]} 18. Qa4 {[%clk 0:01:31]}  Rc7 {[%clk 0:01:27]} 19. Qb5 {[%clk 0:01:09]}  Qxb5 {[%clk 0:01:10]} 20. cxb5 {[%clk 0:01:09]}  cxd4 {[%clk 0:01:07]} 21. cxd4 {[%clk 0:01:08]}  Rac8 {[%clk 0:01:07]} 22. Rxc7 {[%clk 0:01:07]}  Rxc7 {[%clk 0:01:08]} 23. Nb3 {[%clk 0:00:46]}  Rc2 {[%clk 0:00:57]} 24. Nxa5 {[%clk 0:00:42]}  bxa5 {[%clk 0:00:57]} 25. Rb1 {[%clk 0:00:42]}  Rxa2 {[%clk 0:00:54]} 26. b6 {[%clk 0:00:43]}  axb6 {[%clk 0:00:55]} 27. Rxb6 {[%clk 0:00:43]}  d5 {[%clk 0:00:56]} 28. Rb8+ {[%clk 0:00:41]}  Kh7 {[%clk 0:00:56]} 29. Ra8 {[%clk 0:00:39]}  h5 {[%clk 0:00:53]} 30. h4 {[%clk 0:00:37]}  Kg6 {[%clk 0:00:53]} 31. g3 {[%clk 0:00:37]}  Kf5 {[%clk 0:00:42]} 32. Ra7 {[%clk 0:00:34]}  Kf6 {[%clk 0:00:42]} 33. Kg2 {[%clk 0:00:33]}  Ra1 {[%clk 0:00:34]} 34. Kf3 {[%clk 0:00:33]}  a4 {[%clk 0:00:34]} 35. Kg2 {[%clk 0:00:32]}  a3 {[%clk 0:00:34]} 36. Kf3 {[%clk 0:00:32]}  Kg6 {[%clk 0:00:35]} 37. Kg2 {[%clk 0:00:31]}  f6 {[%clk 0:00:35]} 38. Kf3 {[%clk 0:00:30]}  Kf5 {[%clk 0:00:29]} 39. Rxg7 {[%clk 0:00:26]}  Rb1 {[%clk 0:00:26]} 40. Ra7 {[%clk 0:00:25]}  Rb3 {[%clk 0:00:27]} 41. Rh7 {[%clk 0:00:20]}  a2 {[%clk 0:00:26]} 42. Ra7 {[%clk 0:00:17]}  Rb2 {[%clk 0:00:26]} 43. Kg2 {[%clk 0:00:16]}  Ke4 {[%clk 0:00:25]} 44. Ra6 {[%clk 0:00:16]}  Kd3 {[%clk 0:00:25]} 45. Ra7 {[%clk 0:00:13]}  f5 {[%clk 0:00:25]} 46. Ra6 {[%clk 0:00:11]}  Kc2 {[%clk 0:00:24]} 47. Rc6+ {[%clk 0:00:10]}  Kb1 {[%clk 0:00:25]} 48. Kf3 {[%clk 0:00:06]}  a1=Q {[%clk 0:00:25]} 0-1


[Site "https://www.chess.com"]